fUST/lending_fUST_20240118
["ID","MTS","AMOUNT","RATE_DAILY","PERIOD"]
[311947646,1705512657996,-500.0,0.00022465,2]
[311947647,1705512658016,-500.0,0.00022465,2]
[311947649,1705512658039,-500.0,0.00022465,2]
[311947651,1705512658062,-593.26,0.00022465,2]
[311947653,1705512658089,-500.0,0.00022465,2]
[311947655,1705512658109,-1270.32,0.00022465,2]
[311947657,1705512658128,-1755.97,0.00022465,2]
[311947659,1705512658146,-177.12078323,0.00022465,2]
[311947661,1705512658174,-500.0,0.00022465,2]
[311947663,1705512658194,-500.0,0.00022465,2]
[311947665,1705512658214,-596.19,0.00022465,2]
[311947667,1705512658230,-500.0,0.00022465,2]
[311947668,1705512658245,-909.33,0.00022465,2]
[311947670,1705512658269,-5384.59,0.00022465,2]
[311947673,1705512658292,-702.23,0.00022465,2]
[311947674,1705512658319,-2124.6,0.00022465,2]
[311947676,1705512658333,-500.0,0.00022465,2]
[311947678,1705512658365,-729.48,0.00022465,2]
[311947681,1705512658384,-500.0,0.00022465,2]
[311947683,1705512658397,-13262.24,0.00022465,2]
[311947684,1705512658416,-500.0,0.00022465,2]
[311947687,1705512658440,-3713.26,0.00022465,2]
[311947689,1705512658473,-500.0,0.00022465,2]
[311947691,1705512658509,-802.09,0.00022465,2]
[311947693,1705512658534,-500.0,0.00022465,2]
[311947695,1705512658554,-2868.28,0.00022465,2]
[311947697,1705512658575,-500.0,0.00022465,2]
[311947698,1705512658595,-1114.41,0.00022465,2]
[311947700,1705512658615,-4076.23,0.00022465,2]
[311947702,1705512658626,-6857.76,0.00022465,2]
[311947703,1705512658655,-500.0,0.00022465,2]
[311947706,1705512658679,-675.9,0.00022465,2]
[311947708,1705512658703,-513.63501806,0.00022465,2]
[311947710,1705512658732,-751.69,0.00022465,2]
[311947712,1705512658746,-1500.71,0.00022465,2]
[311947714,1705512658784,-500.0,0.00022465,2]
[311947717,1705512658815,-500.0,0.00022465,2]
[311947718,1705512658843,-931.99,0.00022465,2]
[311947721,1705512658875,-500.0,0.00022465,2]
[311947723,1705512658895,-500.0,0.00022465,2]
[311947725,1705512658914,-500.0,0.00022465,2]
[311947727,1705512658929,-490.9215493,0.00022465,2]
[311947729,1705512658957,-500.0,0.00022465,2]
[311947731,1705512658973,-500.0,0.00022465,2]
[311947732,1705512658993,-808.21,0.00022465,2]
[311947737,1705512659086,-510.11734616,0.00022465,2]
[311947739,1705512659119,-500.0,0.00022465,2]
[311947741,1705512659145,-500.0,0.00022465,2]
[311947743,1705512659164,-500.0,0.00022465,2]
[311947745,1705512659178,-1242.35,0.00022465,2]
[311947747,1705512659208,-500.0,0.00022465,2]
[311947749,1705512659225,-1372.82,0.00022465,2]
[311947751,1705512659246,-500.0,0.00022465,2]
[311947754,1705512659271,-500.0,0.00022465,2]
[311947756,1705512659296,-500.0,0.00022465,2]
[311947758,1705512659314,-241.37531993,0.00022465,2]
[311947760,1705512659346,-500.0,0.00022465,2]
[311947762,1705512659367,-697.56,0.00022465,2]
[311947764,1705512659388,-500.0,0.00022465,2]
[311947766,1705512659402,-500.0,0.00022465,2]
[311947776,1705512659631,-1000.0,0.00022465,2]
[311947778,1705512659663,-500.0,0.00022465,2]
[311947780,1705512659681,-500.0,0.00022465,2]
[311947781,1705512659693,-1020.42,0.00022465,2]
[311947785,1705512659738,-500.0,0.00022465,2]
[311947786,1705512659761,-1000.0,0.00022503,2]
[311947788,1705512659776,-1000.0,0.00022507,2]
[311947790,1705512659788,-1000.0,0.00022514,2]
[311947792,1705512659809,-1000.0,0.0002256,2]
[311947794,1705512659835,-500.0,0.000226,2]
[311947796,1705512659857,-1061.90415234,0.00022601,2]
[311947798,1705512659884,-500.0,0.00022602,2]
[311947799,1705512659901,-500.0,0.00022602,2]
[311947801,1705512659925,-500.0,0.00022602,2]
[311947803,1705512659946,-500.0,0.00022602,2]
[311947805,1705512659977,-500.0,0.00022602,2]
[311947807,1705512659991,-500.0,0.00022602,2]
[311947810,1705512660024,-593.26,0.00022602,2]
[311947812,1705512660043,-500.0,0.00022602,2]
[311947814,1705512660081,-1270.32,0.00022602,2]
[311947816,1705512660105,-1755.97,0.00022602,2]
[311947818,1705512660122,-500.0,0.00022602,2]
[311947820,1705512660135,-596.19,0.00022602,2]
[311947822,1705512660170,-500.0,0.00022602,2]
[311947824,1705512660186,-909.33,0.00022602,2]
[311947826,1705512660206,-5384.59,0.00022602,2]
[311947828,1705512660233,-702.23,0.00022602,2]
[311947830,1705512660260,-2124.6,0.00022602,2]
[311947832,1705512660277,-500.0,0.00022602,2]
[311947834,1705512660306,-729.48,0.00022602,2]
[311947837,1705512660328,-500.0,0.00022602,2]
[311947839,1705512660346,-13262.24,0.00022602,2]
[311947840,1705512660370,-500.0,0.00022602,2]
[311947842,1705512660388,-3713.26,0.00022602,2]
[311947844,1705512660406,-802.09,0.00022602,2]
[311947846,1705512660428,-500.0,0.00022602,2]
[311947848,1705512660447,-2868.28,0.00022602,2]
[311947850,1705512660482,-500.0,0.00022602,2]
[311947852,1705512660507,-1114.41,0.00022602,2]
[311947854,1705512660527,-4076.23,0.00022602,2]
[311947856,1705512660545,-6857.76,0.00022602,2]
[311947858,1705512660557,-500.0,0.00022602,2]
[311947860,1705512660589,-675.9,0.00022602,2]
[311947862,1705512660610,-751.69,0.00022602,2]
[311947864,1705512660627,-500.0,0.00022602,2]
[311947866,1705512660647,-500.0,0.00022602,2]
[311947868,1705512660670,-931.99,0.00022602,2]
[311947870,1705512660686,-500.0,0.00022602,2]
[311947872,1705512660704,-500.0,0.00022602,2]
[311947874,1705512660726,-808.21,0.00022602,2]
[311947876,1705512660742,-500.0,0.00022602,2]
[311947878,1705512660766,-500.0,0.00022602,2]
[311947881,1705512660794,-500.0,0.00022602,2]
[311947882,1705512660813,-1242.35,0.00022602,2]
[311947885,1705512660829,-447.12345925,0.00022602,2]
[311947887,1705512660850,-1372.82,0.00022602,2]
[311947889,1705512660867,-500.0,0.00022602,2]
[311947891,1705512660880,-500.0,0.00022602,2]
[311947893,1705512660905,-500.0,0.00022602,2]
[311947895,1705512660921,-500.0,0.00022602,2]
[311947896,1705512660939,-697.56,0.00022602,2]
[311947898,1705512660955,-500.0,0.00022602,2]
[311947900,1705512660982,-500.0,0.00022602,2]
[311947902,1705512660999,-1079.10068418,0.00022602,2]
[311947904,1705512661018,-500.0,0.00022602,2]
[311947906,1705512661046,-500.0,0.00022602,2]
[311947909,1705512661069,-1020.42,0.00022602,2]
[311947911,1705512661092,-500.0,0.00022602,2]
[311947912,1705512661108,-1000.0,0.00022629,2]
[311947914,1705512661124,-1000.0,0.00022633,2]
[311947916,1705512661147,-160.46604117,0.00022637,2]
[311947918,1705512661171,-1000.0,0.00022671,2]
[311947920,1705512661192,-1000.0,0.00022671,2]
[311947922,1705512661213,-1000.0,0.00022718,2]
[311947923,1705512661234,-1000.0,0.00022725,2]
[311947926,1705512661256,-1000.0,0.00022735,2]
[311947927,1705512661275,-500.0,0.00022737,2]
[311947929,1705512661291,-500.0,0.00022739,2]
[311947931,1705512661317,-500.0,0.00022739,2]
[311947933,1705512661337,-177.5784829,0.00022739,2]
[311947936,1705512661361,-500.0,0.00022739,2]
[311947937,1705512661394,-500.0,0.00022739,2]
[311947939,1705512661413,-500.0,0.00022739,2]
[311947941,1705512661435,-593.26,0.00022739,2]
[311947943,1705512661467,-1270.32,0.00022739,2]
[311947945,1705512661481,-1755.97,0.00022739,2]
[311947947,1705512661499,-500.0,0.00022739,2]
[311947949,1705512661528,-596.19,0.00022739,2]
[311947951,1705512661543,-500.0,0.00022739,2]
[311947954,1705512661563,-909.33,0.00022739,2]
[311947956,1705512661589,-5384.59,0.00022739,2]
[311947958,1705512661609,-702.23,0.00022739,2]
[311947960,1705512661635,-2124.6,0.00022739,2]
[311947962,1705512661657,-500.0,0.00022739,2]
[311947967,1705512661744,-729.48,0.00022739,2]
[311947969,1705512661768,-500.0,0.00022739,2]
[311947971,1705512661798,-13262.24,0.00022739,2]
[311947973,1705512661815,-500.0,0.00022739,2]
[311947976,1705512661845,-3713.26,0.00022739,2]
[311947978,1705512661871,-802.09,0.00022739,2]
[311947980,1705512661889,-500.0,0.00022739,2]
[311947982,1705512661908,-2868.28,0.00022739,2]
[311947984,1705512661934,-1114.41,0.00022739,2]
[311947986,1705512661953,-4076.23,0.00022739,2]
[311947988,1705512661969,-6857.76,0.00022739,2]
[311947990,1705512661990,-675.9,0.00022739,2]
[311947992,1705512662006,-751.69,0.00022739,2]
[311947994,1705512662025,-500.0,0.00022739,2]
[311947996,1705512662052,-500.0,0.00022739,2]
[311947998,1705512662068,-931.99,0.00022739,2]
[311948000,1705512662086,-500.0,0.00022739,2]
[311948002,1705512662105,-500.0,0.00022739,2]
[311948004,1705512662131,-808.21,0.00022739,2]
[311948006,1705512662148,-500.0,0.00022739,2]
[311948008,1705512662167,-500.0,0.00022739,2]
[311948010,1705512662182,-500.0,0.00022739,2]
[311948011,1705512662194,-1242.35,0.00022739,2]
[311948014,1705512662214,-1372.82,0.00022739,2]
[311948015,1705512662234,-500.0,0.00022739,2]
[311948017,1705512662248,-500.0,0.00022739,2]
[311948019,1705512662265,-500.0,0.00022739,2]
[311948021,1705512662280,-697.56,0.00022739,2]
[311948024,1705512662305,-619.44326316,0.00022739,2]
[311948026,1705512662324,-1020.42,0.00022739,2]
[311948027,1705512662342,-397.91523,0.0002274,2]
[311948030,1705512662367,-306.4086177,0.0002274,2]
[311948032,1705512662395,-1000.0,0.00022759,2]
[311948034,1705512662414,-235.2,0.00022875,2]
[311948037,1705512662437,-500.0,0.00022876,2]
[311948039,1705512662458,-500.0,0.00022876,2]
[311948040,1705512662479,-500.0,0.00022876,2]
[311948043,1705512662498,-500.0,0.00022876,2]
[311948045,1705512662524,-500.0,0.00022876,2]
[311948047,1705512662548,-593.26,0.00022876,2]
[311948049,1705512662565,-1270.32,0.00022876,2]
[311948051,1705512662584,-1755.97,0.00022876,2]
[311948053,1705512662608,-500.0,0.00022876,2]
[311948055,1705512662622,-596.19,0.00022876,2]
[311948057,1705512662637,-500.0,0.00022876,2]
[311948059,1705512662660,-909.33,0.00022876,2]
[311948061,1705512662683,-5384.59,0.00022876,2]
[311948063,1705512662704,-702.23,0.00022876,2]
[311948065,1705512662729,-2124.6,0.00022876,2]
[311948068,1705512662751,-500.0,0.00022876,2]
[311948069,1705512662771,-729.48,0.00022876,2]
[311948072,1705512662794,-500.0,0.00022876,2]
[311948073,1705512662816,-13262.24,0.00022876,2]
[311948076,1705512662841,-500.0,0.00022876,2]
[311948078,1705512662858,-3713.26,0.00022876,2]
[311948079,1705512662877,-802.09,0.00022876,2]
[311948081,1705512662906,-500.0,0.00022876,2]
[311948083,1705512662928,-2868.28,0.00022876,2]
[311948085,1705512662942,-1114.41,0.00022876,2]
[311948087,1705512662960,-4076.23,0.00022876,2]
[311948089,1705512662981,-6857.76,0.00022876,2]
[311948092,1705512663007,-675.9,0.00022876,2]
[311948094,1705512663029,-751.69,0.00022876,2]
[311948096,1705512663047,-500.0,0.00022876,2]
[311948098,1705512663064,-500.0,0.00022876,2]
[311948100,1705512663079,-931.99,0.00022876,2]
[311948102,1705512663097,-500.0,0.00022876,2]
[311948104,1705512663123,-808.21,0.00022876,2]
[311948106,1705512663141,-500.0,0.00022876,2]
[311948108,1705512663160,-1242.35,0.00022876,2]
[311948110,1705512663189,-1372.82,0.00022876,2]
[311948113,1705512663221,-500.0,0.00022876,2]
[311948114,1705512663244,-500.0,0.00022876,2]
[311948117,1705512663266,-697.56,0.00022876,2]
[311948118,1705512663289,-1020.42,0.00022876,2]
[311948120,1705512663304,-166.666666,0.00022944,2]
[311948123,1705512663324,-5499.99999103,0.00023,2]
[311948125,1705512663347,-500.0,0.00023013,2]
[311948127,1705512663364,-500.0,0.00023013,2]
[311948129,1705512663386,-500.0,0.00023013,2]
[311948131,1705512663405,-500.0,0.00023013,2]
[311948133,1705512663430,-500.0,0.00023013,2]
[311948134,1705512663450,-593.26,0.00023013,2]
[311948136,1705512663476,-1270.32,0.00023013,2]
[311948137,1705512663493,-1755.97,0.00023013,2]
[311948139,1705512663514,-500.0,0.00023013,2]
[311948141,1705512663535,-596.19,0.00023013,2]
[311948143,1705512663550,-500.0,0.00023013,2]
[311948146,1705512663576,-909.33,0.00023013,2]
[311948147,1705512663590,-5384.59,0.00023013,2]
[311948149,1705512663607,-702.23,0.00023013,2]
[311948152,1705512663636,-2124.6,0.00023013,2]
[311948154,1705512663664,-500.0,0.00023013,2]
[311948156,1705512663681,-729.48,0.00023013,2]
[311948158,1705512663702,-500.0,0.00023013,2]
[311948160,1705512663723,-13262.24,0.00023013,2]
[311948162,1705512663758,-500.0,0.00023013,2]
[311948164,1705512663775,-3713.26,0.00023013,2]
[311948165,1705512663794,-802.09,0.00023013,2]
[311948168,1705512663814,-500.0,0.00023013,2]
[311948173,1705512663839,-2868.28,0.00023013,2]
[311948175,1705512663921,-1114.41,0.00023013,2]
[311948177,1705512663938,-4076.23,0.00023013,2]
[311948180,1705512663964,-6857.76,0.00023013,2]
[311948181,1705512663983,-675.9,0.00023013,2]
[311948184,1705512664017,-751.69,0.00023013,2]
[311948185,1705512664030,-500.0,0.00023013,2]
[311948187,1705512664065,-500.0,0.00023013,2]
[311948189,1705512664085,-931.99,0.00023013,2]
[311948191,1705512664108,-500.0,0.00023013,2]
[311948194,1705512664130,-808.21,0.00023013,2]
[311948196,1705512664150,-500.0,0.00023013,2]
[311948198,1705512664176,-1242.35,0.00023013,2]
[311948199,1705512664189,-1372.82,0.00023013,2]
[311948201,1705512664211,-500.0,0.00023013,2]
[311948203,1705512664232,-500.0,0.00023013,2]
[311948205,1705512664248,-697.56,0.00023013,2]
[311948207,1705512664274,-1020.42,0.00023013,2]
[311948209,1705512664293,-500.0,0.0002315,2]
[311948211,1705512664307,-500.0,0.0002315,2]
[311948213,1705512664330,-500.0,0.0002315,2]
[311948216,1705512664351,-500.0,0.0002315,2]
[311948218,1705512664383,-500.0,0.0002315,2]
[311948220,1705512664402,-593.26,0.0002315,2]
[311948222,1705512664425,-1270.32,0.0002315,2]
[311948223,1705512664445,-1755.97,0.0002315,2]
[311948225,1705512664465,-500.0,0.0002315,2]
[311948228,1705512664493,-596.19,0.0002315,2]
[311948230,1705512664516,-157.78627968,0.0002315,2]
[311948232,1705512664533,-909.33,0.0002315,2]
[311948234,1705512664563,-5384.59,0.0002315,2]
[311948236,1705512664602,-702.23,0.0002315,2]
[311948237,1705512664619,-2124.6,0.0002315,2]
[311948238,1705512664633,-500.0,0.0002315,2]
[311948239,1705512664651,-729.48,0.0002315,2]
[311948240,1705512664674,-500.0,0.0002315,2]
[311948241,1705512664700,-13262.24,0.0002315,2]
[311948242,1705512664713,-500.0,0.0002315,2]
[311948243,1705512664731,-3713.26,0.0002315,2]
[311948244,1705512664755,-802.09,0.0002315,2]
[311948245,1705512664769,-500.0,0.0002315,2]
[311948246,1705512664785,-2868.28,0.0002315,2]
[311948247,1705512664800,-1114.41,0.0002315,2]
[311948249,1705512664831,-4076.23,0.0002315,2]
[311948251,1705512664863,-6857.76,0.0002315,2]
[311948253,1705512664879,-675.9,0.0002315,2]
[311948255,1705512664910,-751.69,0.0002315,2]
[311948257,1705512664929,-500.0,0.0002315,2]
[311948259,1705512664948,-500.0,0.0002315,2]
[311948261,1705512664960,-931.99,0.0002315,2]
[311948263,1705512664979,-500.0,0.0002315,2]
[311948264,1705512664999,-808.21,0.0002315,2]
[311948267,1705512665032,-500.0,0.0002315,2]
[311948268,1705512665048,-1242.35,0.0002315,2]
[311948270,1705512665068,-1372.82,0.0002315,2]
[311948273,1705512665087,-500.0,0.0002315,2]
[311948274,1705512665109,-500.0,0.0002315,2]
[311948276,1705512665126,-697.56,0.0002315,2]
[311948278,1705512665147,-1020.42,0.0002315,2]
[311948280,1705512665170,-215.34573046,0.00023159,2]
[311948282,1705512665193,-300.0,0.00023186,2]
[311948284,1705512665208,-879.43811936,0.00023188,2]
[311948286,1705512665227,-8893.6817294,0.00023287,2]
[311948288,1705512665249,-350.19057545,0.00023287,2]
[311948290,1705512665265,-500.0,0.00023287,2]
[311948291,1705512665288,-500.0,0.00023287,2]
[311948293,1705512665300,-500.0,0.00023287,2]
[311948295,1705512665316,-235.63871188,0.00023287,2]
[311948297,1705512665336,-593.26,0.00023287,2]
[311948299,1705512665356,-1270.32,0.00023287,2]
[311948301,1705512665377,-1755.97,0.00023287,2]
[311948303,1705512665397,-500.0,0.00023287,2]
[311948305,1705512665413,-596.19,0.00023287,2]
[311948306,1705512665428,-909.33,0.00023287,2]
[311948308,1705512665451,-5384.59,0.00023287,2]
[311948310,1705512665470,-702.23,0.00023287,2]
[311948312,1705512665490,-2124.6,0.00023287,2]
[311948314,1705512665508,-500.0,0.00023287,2]
[311948316,1705512665531,-729.48,0.00023287,2]
[311948318,1705512665548,-500.0,0.00023287,2]
[311948319,1705512665561,-13262.24,0.00023287,2]
[311948321,1705512665583,-500.0,0.00023287,2]
[311948323,1705512665598,-3713.26,0.00023287,2]
[311948326,1705512665626,-802.09,0.00023287,2]
[311948327,1705512665644,-500.0,0.00023287,2]
[311948329,1705512665670,-2868.28,0.00023287,2]
[311948331,1705512665693,-1114.41,0.00023287,2]
[311948333,1705512665712,-4076.23,0.00023287,2]
[311948335,1705512665729,-6857.76,0.00023287,2]
[311948337,1705512665747,-675.9,0.00023287,2]
[311948339,1705512665769,-751.69,0.00023287,2]
[311948340,1705512665784,-500.0,0.00023287,2]
[311948342,1705512665806,-500.0,0.00023287,2]
[311948347,1705512665888,-931.99,0.00023287,2]
[311948349,1705512665903,-500.0,0.00023287,2]
[311948351,1705512665925,-808.21,0.00023287,2]
[311948353,1705512665947,-500.0,0.00023287,2]
[311948355,1705512665968,-1242.35,0.00023287,2]
[311948357,1705512665988,-1372.82,0.00023287,2]
[311948359,1705512666007,-500.0,0.00023287,2]
[311948361,1705512666025,-500.0,0.00023287,2]
[311948363,1705512666047,-697.56,0.00023287,2]
[311948365,1705512666067,-1020.42,0.00023287,2]
[311948366,1705512666092,-136.39207685,0.00023288,4]
[311948368,1705512666110,-404.3817586,0.00023288,4]
[311948370,1705512666139,-265.26139135,0.00023288,4]
[311948373,1705512666163,-206.44200709,0.00023288,2]
[311948374,1705512666181,-556.44176644,0.00023288,4]
[311948376,1705512666202,-500.0,0.00023288,4]
[311948378,1705512666218,-153.06482486,0.00023288,4]
[311948380,1705512666242,-401.27195423,0.00023288,2]
[311948382,1705512666256,-500.0,0.00023288,2]
[311948384,1705512666280,-500.0,0.00023288,2]
[311948386,1705512666311,-479.61256478,0.00023288,2]
[311948388,1705512666333,-453.14433435,0.00023288,2]
[311948390,1705512666350,-500.0,0.00023288,2]
[311948391,1705512666366,-500.0,0.00023288,2]
[311948393,1705512666378,-500.0,0.00023288,2]
[311948395,1705512666403,-584.71083595,0.00023288,2]
[311948397,1705512666419,-207.23090615,0.00023288,2]
[311948399,1705512666438,-500.0,0.00023288,2]
[311948400,1705512666461,-647.39422931,0.00023288,2]
[311948402,1705512666483,-500.0,0.00023288,2]
[311948404,1705512666502,-500.0,0.00023288,2]
[311948406,1705512666525,-500.0,0.00023288,2]
[311948408,1705512666542,-533.15083789,0.00023288,2]
[311948410,1705512666562,-500.0,0.00023288,2]
[311948412,1705512666582,-247.497915,0.00023288,2]
[311948413,1705512666598,-434.41452896,0.00023288,4]
[311948415,1705512666620,-430.22318805,0.00023288,4]
[311948417,1705512666635,-381.27849799,0.00023288,4]
[311948419,1705512666658,-415.42092994,0.00023288,4]
[311948421,1705512666679,-638.13088296,0.00023288,4]
[311948423,1705512666701,-172.08927521,0.00023288,4]
[311948425,1705512666729,-163.40507056,0.00023288,4]
[311948427,1705512666751,-159.53272073,0.00023288,4]
[311948430,1705512666779,-500.0,0.00023288,2]
[311948432,1705512666808,-500.0,0.00023288,2]
[311948435,1705512666843,-500.0,0.00023288,2]
[311948438,1705512666884,-500.0,0.00023288,2]
[311948441,1705512666922,-500.0,0.00023288,2]
[311948444,1705512666966,-500.0,0.00023288,2]
[311948446,1705512667012,-528.46536404,0.00023288,2]
[311948448,1705512667038,-500.0,0.00023288,2]
[311948450,1705512667073,-500.0,0.00023288,2]
[311948452,1705512667105,-500.0,0.00023288,2]
[311948455,1705512667135,-500.0,0.00023288,2]
[311948458,1705512667167,-500.0,0.00023288,2]
[311948460,1705512667211,-500.0,0.00023288,2]
[311948462,1705512667232,-500.0,0.00023288,2]
[311948465,1705512667282,-500.0,0.00023288,2]
[311948467,1705512667309,-500.0,0.00023288,2]
[311948470,1705512667334,-500.0,0.00023288,2]
[311948472,1705512667355,-646.69330206,0.00023288,2]
[311948474,1705512667381,-500.0,0.00023288,2]
[311948477,1705512667409,-500.0,0.00023288,2]
[311948480,1705512667432,-500.0,0.00023288,2]
[311948482,1705512667458,-500.0,0.00023288,2]
[311948484,1705512667489,-500.0,0.00023288,2]
[311948487,1705512667512,-500.0,0.00023288,2]
[311948489,1705512667537,-500.0,0.00023288,2]
[311948491,1705512667559,-500.0,0.00023288,2]
[311948493,1705512667591,-500.0,0.00023288,2]
[311948495,1705512667613,-500.0,0.00023288,2]
[311948498,1705512667643,-500.0,0.00023288,2]
[311948500,1705512667675,-500.0,0.00023288,2]
[311948503,1705512667704,-500.0,0.00023288,2]
[311948505,1705512667728,-629.33866041,0.00023288,2]
[311948507,1705512667753,-500.0,0.00023288,2]
[311948510,1705512667773,-500.0,0.00023288,4]
[311948512,1705512667796,-436.07194235,0.00023288,4]
[311948528,1705512668081,-54.14326935,0.00023288,4]
[311948530,1705512668092,-385.74800637,0.00023288,4]
[311948531,1705512668108,-166.25627015,0.00023288,4]
[311948533,1705512668129,-500.0,0.00023288,4]
[311948536,1705512668148,-500.0,0.00023288,4]
[311948537,1705512668164,-486.70107321,0.00023288,4]
[311948539,1705512668186,-266.50250805,0.00023288,4]
[311948540,1705512668212,-500.0,0.00023288,2]
[311948541,1705512668227,-414.7467261,0.00023288,2]
[311948542,1705512668256,-500.0,0.00023288,2]
[311948543,1705512668276,-500.0,0.00023288,2]
[311948544,1705512668291,-408.34373558,0.00023288,2]
[311948550,1705512668648,-91.65626442,0.00023288,2]
[311948552,1705512668668,-500.0,0.00023288,2]
[311948553,1705512668687,-500.0,0.00023288,2]
[311948555,1705512668698,-500.0,0.00023288,2]
[311948557,1705512668721,-500.0,0.00023288,2]
[311948559,1705512668736,-540.58663706,0.00023288,2]
[311948561,1705512668750,-308.62732944,0.00023288,2]
[311948563,1705512668766,-540.58663706,0.00023288,2]
[311948565,1705512668782,-540.58663706,0.00023288,2]
[311948568,1705512668801,-540.58663706,0.00023288,2]
[311948569,1705512668818,-540.58663706,0.00023288,2]
[311948571,1705512668837,-540.58663706,0.00023288,2]
[311948573,1705512668861,-540.58663706,0.00023288,2]
[311948576,1705512668886,-540.58663706,0.00023288,2]
[311948578,1705512668899,-500.0,0.00023288,2]
[311948580,1705512668918,-500.0,0.00023288,2]
[311948582,1705512668929,-501.11168722,0.00023288,2]
[311948584,1705512668941,-500.0,0.00023288,2]
[311948586,1705512668959,-2342.7420312,0.00023288,2]
[311948587,1705512668970,-2342.7420312,0.00023288,2]
[311948590,1705512668997,-2342.7420312,0.00023288,2]
[311948591,1705512669013,-2342.7420312,0.00023288,2]
[311948593,1705512669034,-2342.7420312,0.00023288,2]
[311948595,1705512669059,-2342.7420312,0.00023288,2]
[311948597,1705512669077,-2342.7420312,0.00023288,2]
[311948599,1705512669098,-2342.7420312,0.00023288,2]
[311948601,1705512669119,-500.00000001,0.00023288,2]
[311948603,1705512669133,-500.0,0.00023288,2]
[311948604,1705512669157,-500.0,0.00023288,2]
[311948607,1705512669174,-174.58713777,0.00023288,2]
[311948608,1705512669214,-500.0,0.00023288,2]
[311948610,1705512669241,-500.0,0.00023288,2]
[311948613,1705512669264,-450.61564019,0.00023288,4]
[311948615,1705512669296,-477.39420188,0.00023288,4]
[311948617,1705512669321,-507.52870941,0.00023288,4]
[311948619,1705512669341,-440.47017666,0.00023288,2]
[311948621,1705512669360,-500.0,0.00023288,2]
[311948623,1705512669376,-500.0,0.00023288,2]
[311948625,1705512669399,-435.01756395,0.00023288,2]
[311948627,1705512669421,-500.0,0.00023288,4]
[311948629,1705512669442,-500.0,0.00023288,4]
[311948630,1705512669457,-418.37121975,0.00023288,4]
[311948632,1705512669481,-460.31921916,0.00023288,4]
[311948634,1705512669510,-179.52150103,0.00023288,4]
[311948636,1705512669530,-498.40912906,0.00023288,4]
[311948638,1705512669551,-249.60228226,0.00023288,4]
[311948640,1705512669562,-500.0,0.00023288,4]
[311948642,1705512669582,-596.96341328,0.00023288,4]
[311948644,1705512669599,-500.0,0.00023288,4]
[311948646,1705512669616,-500.0,0.00023288,4]
[311948648,1705512669630,-500.0,0.00023288,4]
[311948650,1705512669642,-500.0,0.00023288,4]
[311948651,1705512669655,-500.0,0.00023288,4]
[311948654,1705512669666,-1622.15821704,0.00023288,2]
[311948656,1705512669683,-500.0,0.00023288,4]
[311948657,1705512669702,-1622.15821704,0.00023288,2]
[311948660,1705512669718,-1622.15821704,0.00023288,2]
[311948661,1705512669732,-1622.15821704,0.00023288,2]
[311948663,1705512669750,-1622.15821704,0.00023288,2]
[311948665,1705512669760,-1622.15821704,0.00023288,2]
[311948667,1705512669774,-542.65442132,0.00023288,2]
[311948671,1705512669828,-1079.5037957,0.00023288,2]
[311948673,1705512669844,-488.58216454,0.00023288,2]